bitfinex/quotes_SOLUSD_20220113
["timestamp","ask_amount","ask_price","bid_price","bid_amount"]
[1642035941721,49.33149298,150.92,150.83,24.05460202]
[1642035941921,49.33149298,150.92,150.85,9.9403]
[1642035942322,49.33149298,150.92,150.86,0.26]
[1642035942525,25.6047,150.92,150.86,0.26]
[1642035942924,22.9547,150.92,150.84,11.63968221]
[1642035943223,22.9547,150.92,150.84,11.88968221]
[1642035943625,22.9547,150.92,150.85,1.87968221]
[1642035943826,25.6047,150.92,150.86,9.9399]
[1642035944027,25.8547,150.92,150.86,10.1999]
[1642035948757,23.2047,150.92,150.86,10.1999]
[1642035949963,23.2047,150.92,150.86,9.9399]
[1642035950162,0.26,150.91,150.85,1.87968221]
[1642035950458,2.91,150.91,150.85,1.87968221]
[1642035950658,3.16,150.91,150.85,1.87968221]
[1642035951059,3.16,150.91,150.82,1.87968221]
[1642035951462,13.1022,150.91,150.82,1.87968221]
[1642035951960,22.8189,150.9,150.82,1.87968221]
[1642035952160,2.65,150.89,150.82,1.87968221]
[1642035952661,2.9,150.89,150.82,1.87968221]
[1642035952859,2.9,150.89,150.83,0.26]
[1642035953060,0.25,150.89,150.83,0.26]
[1642035953661,25.7189,150.9,150.83,0.26]
[1642035953862,25.7189,150.9,150.84,9.9412]
[1642035953863,23.0689,150.9,150.84,9.9412]
[1642035954363,23.0689,150.9,150.84,33.73814731]
[1642035957766,23.0689,150.9,150.83,2.13968221]
[1642035957963,2.65,150.89,150.83,2.13968221]
[1642035958164,0.25,150.89,150.83,2.13968221]
[1642035959266,0.25,150.89,150.83,0.26]
[1642035959467,25.7189,150.9,150.83,0.26]
[1642035959866,25.7189,150.9,150.83,10.2017]
[1642035961181,25.7189,150.9,150.82,1.87968221]
[1642035961374,6.26,150.89,150.82,1.87968221]
[1642035961576,2.65,150.88,150.82,1.87968221]
[1642035961776,22.43336405,150.87,150.82,1.87968221]
[1642035961976,2.65,150.86,150.81,1.87968221]
[1642035962176,9.9466,150.85,150.81,1.87968221]
[1642035962473,26.6066,150.86,150.81,1.87968221]
[1642035963074,26.6066,150.86,150.78,33.82895798]
[1642035963374,26.6066,150.86,150.79,0.26]
[1642035963375,23.9566,150.86,150.79,0.26]
[1642035964073,23.9566,150.86,150.79,10.2043]
[1642035964373,23.9566,150.86,150.79,12.33398221]
[1642035965573,23.9566,150.86,150.79,12.08398221]
[1642035965974,2.652,150.85,150.79,12.08398221]
[1642035966174,0.25,150.85,150.79,12.33398221]
[1642035966372,0.25,150.85,150.79,12.07398221]
[1642035966573,0.25,150.85,150.79,10.1943]
[1642035967572,23.9566,150.86,150.79,12.07398221]
[1642035967772,23.9566,150.86,150.8,0.26]
[1642035967977,23.9566,150.86,150.81,9.9428]
[1642035968375,23.9566,150.86,150.82,0.26]
[1642035968573,26.6066,150.86,150.82,0.26]
[1642035968974,26.6066,150.86,150.8,0.26]
[1642035969975,26.6066,150.86,150.8,9.9439]
[1642035970183,26.6066,150.86,150.79,1.87968221]
[1642035971177,36.552,150.86,150.79,1.87968221]
[1642035971380,0.26,150.85,150.79,1.87968221]
[1642035971579,2.652,150.84,150.77,1.87968221]
[1642035971879,0.26,150.83,150.77,1.87968221]
[1642035972482,24.0251,150.83,150.77,1.87968221]
[1642035972679,24.2751,150.83,150.77,1.87968221]
[1642035972880,24.2751,150.83,150.76,1.87968221]
[1642035973081,2.652,150.82,150.76,1.87968221]
[1642035973281,0.25,150.82,150.76,1.87968221]
[1642035973479,2.902,150.82,150.76,1.87968221]
[1642035973779,28.85983874,150.81,150.75,11.82678221]
[1642035973980,28.85983874,150.81,150.75,12.07678221]
[1642035974180,29.10983874,150.81,150.75,12.07678221]
[1642035974381,29.10983874,150.81,150.77,9.9457]
[1642035975783,29.10983874,150.81,150.76,0.26]
[1642035975981,29.10983874,150.81,150.75,10.2066]
[1642035976181,29.10983874,150.81,150.75,10.4566]
[1642035977080,0.25,150.81,150.75,10.4566]
[1642035977281,26.4171,150.83,150.75,10.4566]
[1642035977482,2.652,150.85,150.76,15.5]
[1642035977683,2.652,150.88,150.8,9.9433]
[1642035977909,2.652,150.88,150.81,0.26]
[1642035978081,32.05983603,150.88,150.81,0.26]
[1642035978682,32.05983603,150.88,150.8,0.51]
[1642035978882,29.40783603,150.88,150.8,0.51]
[1642035979082,29.40783603,150.88,150.8,6.51]
[1642035979482,29.40783603,150.88,150.82,9.9423]
[1642035979685,125.8781,150.89,150.82,10.1923]
[1642035979885,72.5869,150.92,150.83,0.26]
[1642035980087,23.329,150.92,150.83,0.26]
[1642035980281,23.329,150.92,150.83,6.26]
[1642035980484,23.329,150.92,150.84,0.26]
[1642035980682,30.53246618,150.91,150.84,0.26]
[1642035981283,37.0,150.9,150.83,6.01]
[1642035981483,37.0,150.9,150.85,9.9404]
[1642035981781,37.0,150.9,150.85,10.1904]
[1642035981982,37.0,150.9,150.85,9.9404]
[1642035982185,30.53246618,150.91,150.85,9.9404]
[1642035982382,33.18246618,150.91,150.85,9.9404]
[1642035982582,33.43246618,150.91,150.85,9.9404]
[1642035983182,33.18246618,150.91,150.85,9.9404]
[1642035983386,33.18246618,150.91,150.86,10.1995]
[1642035983586,33.18246618,150.91,150.86,9.9395]
[1642035983787,2.9,150.91,150.87,0.26]
[1642035983988,23.329,150.92,150.84,0.26]
[1642035984194,23.579,150.92,150.84,0.26]
[1642035984988,26.229,150.92,150.84,0.26]
[1642035985417,25.979,150.92,150.87,9.9388]
[1642035985618,23.329,150.92,150.87,10.1888]
[1642035985820,23.329,150.92,150.88,0.26]
[1642035986422,23.329,150.92,150.89,9.9375]
[1642035986918,23.329,150.92,150.9,0.26]
[1642035987319,2.65,150.94,150.9,0.26]
[1642035987521,2.65,150.94,150.9,9.9371]
[1642035987920,2.65,150.94,150.91,0.26]
[1642035988119,3.03219997,150.93,150.91,0.26]
[1642035988323,98.8051,150.95,150.91,0.26]
[1642035988521,98.8051,150.95,150.87,0.26]
[1642035988917,98.5551,150.95,150.87,0.26]
[1642035989119,26.2589,150.95,150.87,0.26]
[1642035989319,26.2589,150.95,150.89,9.9362]
[1642035989517,23.6089,150.95,150.9,0.26]
[1642035989719,26.2589,150.95,150.9,0.26]
[1642035990317,2.65,150.95,150.9,0.26]
[1642035990719,24.7758,150.96,150.9,0.26]
[1642035990919,25.0258,150.96,150.9,0.26]
[1642035991523,24.7758,150.96,150.9,0.26]
[1642035992525,24.7758,150.96,150.9,10.1961]
[1642035992725,24.7758,150.96,150.9,10.4461]
[1642035992923,2.65,150.97,150.91,31.33579022]
[1642035993127,2.65,150.99,150.91,37.58579022]
[1642035993325,100.7592,151.0,150.92,0.26]
[1642035993627,100.7592,151.0,150.93,9.934]
[1642035993826,98.1102,151.0,150.93,9.934]
[1642035994027,98.1102,151.0,150.94,0.26]
[1642035994228,98.1102,151.0,150.94,6.26]
[1642035994425,23.5128,151.0,150.94,0.26]
[1642035994825,23.5128,151.0,150.93,0.51]
[1642035995226,23.5128,151.0,150.93,0.26]
[1642035995426,23.5128,151.0,150.94,9.933]
[1642035995627,23.5128,151.0,150.94,10.183]
[1642035995828,27.1278,151.01,150.95,6.26]
[1642035996027,2.649,151.04,150.95,6.26]
[1642035996233,24.218,151.03,150.95,6.51]
[1642035996427,2.649,151.02,150.95,0.51]
[1642035996827,2.649,151.02,150.95,0.25]
[1642035997231,2.649,151.02,150.94,0.33]
[1642035997431,2.899,151.02,150.95,9.9322]
[1642035997629,2.649,151.02,150.95,10.1822]
[1642035997829,2.649,151.02,150.96,0.26]
[1642035998029,6.0,151.01,150.96,0.26]
[1642035998231,2.649,151.02,150.96,0.26]
[1642035998934,2.649,151.02,150.95,9.9322]
[1642035999130,2.649,151.02,150.93,9.9337]
[1642035999331,12.149,151.02,150.89,23.2909]
[1642035999530,30.1785,151.01,150.89,23.2909]
[1642035999731,2.649,151.0,150.89,23.2909]
[1642035999930,24.0083,150.99,150.89,23.2909]
[1642036000132,2.65,150.98,150.89,23.2909]
[1642036000331,23.2851,150.97,150.9,23.7739429]
[1642036000733,23.2851,150.97,150.9,24.0239429]
[1642036001131,23.2851,150.97,150.91,0.26]
[1642036002536,23.2851,150.97,150.91,10.1949]
[1642036002734,23.2851,150.97,150.91,10.4449]
[1642036006340,2.65,150.98,150.91,10.4449]
[1642036007744,2.899,150.99,150.91,10.4449]
[1642036007942,26.2556,150.99,150.91,10.4449]
[1642036008145,26.2556,150.99,150.92,73.9675949]
[1642036008344,23.6066,150.99,150.95,9.9324]
[1642036008544,78.62782759,151.04,150.95,9.9324]
[1642036008744,78.62782759,151.04,150.96,0.26]
[1642036008745,24.3956,151.03,150.96,0.26]
[1642036008944,32.64791033,151.02,150.96,0.26]
[1642036009746,23.0867,151.01,150.93,0.26]
[1642036009945,2.649,151.0,150.93,0.26]
[1642036010144,22.5669,150.99,150.91,6.26]
[1642036010547,22.8169,150.99,150.91,6.51]
[1642036010945,2.649,150.98,150.91,6.51]
[1642036011147,2.649,150.98,150.91,0.25]
[1642036011546,2.649,150.98,150.92,9.9348]
[1642036011774,2.649,150.98,150.92,0.25]
[1642036012573,2.649,150.98,150.92,10.1847]
[1642036013374,2.649,150.98,150.93,0.26]
[1642036015579,22.5669,150.99,150.93,0.26]
[1642036015976,22.5669,150.99,150.93,10.1941]
[1642036016178,22.5669,150.99,150.93,10.4441]
[1642036019078,22.5669,150.99,150.93,19.9441]
[1642036019279,22.5669,150.99,150.93,10.4441]
[1642036019478,22.5669,150.99,150.93,19.9441]
[1642036020080,22.5669,150.99,150.93,10.4441]
[1642036020480,22.5669,150.99,150.93,10.1941]
[1642036020680,22.8169,150.99,150.93,10.1941]
[1642036022080,22.8169,150.99,150.94,6.0]
[1642036022283,22.8169,150.99,150.94,15.9333]
[1642036022481,22.8169,150.99,150.95,0.26]
[1642036024185,22.8169,150.99,150.93,6.26]
[1642036025384,22.8169,150.99,150.93,16.194]
[1642036026186,22.5669,150.99,150.93,16.444]
[1642036028386,22.5669,150.99,150.93,25.944]
[1642036028591,23.5076,151.01,150.93,25.944]
[1642036028789,23.5076,151.01,150.93,27.82368221]
[1642036035294,23.2572,151.0,150.93,27.82368221]
[1642036036895,2.649,151.03,150.93,106.12395635]
[1642036037094,1.84512759,151.04,150.93,237.25868315]
[1642036037395,1.84512759,151.04,150.99,9.9275]
[1642036037597,1.34512759,151.04,151.0,6.0]
[1642036037795,1.34512759,151.04,151.0,6.26]
[1642036038026,1.34512759,151.04,151.0,6.51]
[1642036038222,23.6335,151.07,151.0,6.51]
[1642036038426,26.2815,151.07,151.0,6.51]
[1642036038625,23.6335,151.07,151.0,6.51]
[1642036038825,23.6335,151.07,151.02,9.928]
[1642036039024,23.6335,151.07,151.03,6.0]
[1642036039225,23.6335,151.07,151.03,0.25]
[1642036039824,23.6335,151.07,151.04,9.9271]
[1642036040026,23.6335,151.07,151.05,6.26]
[1642036040229,23.6335,151.07,151.05,6.51]
[1642036040629,2.646,151.09,151.05,6.51]
[1642036040831,2.646,151.09,151.05,0.51]
[1642036041029,27.5659,151.09,151.05,10.1765]
[1642036041431,27.5659,151.09,151.06,6.26]
[1642036041629,27.8159,151.09,150.99,9.5]
[1642036042230,2.06477668,151.08,150.99,9.93]
[1642036042432,2.648,151.07,150.99,9.93]
[1642036042630,2.898,151.07,150.99,9.93]
[1642036044032,23.8279,151.06,150.99,9.93]
[1642036044233,2.648,151.05,150.99,9.93]
[1642036044435,27.49476081,151.04,150.99,9.93]
[1642036044634,2.648,151.03,150.99,9.93]
[1642036045233,27.49476081,151.04,150.99,9.93]
[1642036045437,27.49476081,151.04,151.0,0.26]
[1642036048239,2.648,151.05,151.0,0.26]
[1642036048437,0.25,151.05,151.0,0.26]
[1642036049339,23.8279,151.06,151.0,10.1899]
[1642036049541,23.8279,151.06,151.0,9.9299]
[1642036049740,2.648,151.05,151.01,0.26]
[1642036050646,2.898,151.05,151.01,0.26]
[1642036052642,2.648,151.05,150.98,10.4407]
[1642036052843,23.8279,151.06,150.98,10.4407]
[1642036053044,6.0,151.05,150.98,10.4407]
[1642036053247,24.0779,151.06,150.98,10.4407]
[1642036054744,2.648,151.05,150.98,10.4407]
[1642036055144,2.898,151.05,150.98,10.4407]
[1642036059251,0.25,151.05,150.98,10.4407]
[1642036059451,26.7259,151.06,150.98,10.4407]
[1642036061351,26.7259,151.06,150.98,36.4857911]
[1642036061954,26.7259,151.06,150.99,9.5]
[1642036062155,26.7259,151.06,151.0,9.93]
[1642036062355,26.7259,151.06,151.0,10.19]
[1642036064379,26.4759,151.06,151.0,10.19]
[1642036065483,23.8279,151.06,151.0,10.19]
[1642036065683,24.0779,151.06,151.0,10.19]
[1642036070090,24.0779,151.06,151.01,6.0]
[1642036070287,24.0779,151.06,151.01,15.9289]
[1642036070488,24.0779,151.06,151.02,0.26]
[1642036072090,24.0779,151.06,151.02,10.1886]
[1642036072490,24.0779,151.06,150.98,0.25]
[1642036072691,24.0779,151.06,150.97,52.534]
[1642036072893,26.7259,151.06,150.98,6.0]
[1642036073290,26.7259,151.06,150.98,6.25]
[1642036073497,26.7259,151.06,151.0,9.9297]
[1642036074793,24.0779,151.06,151.0,9.9297]
[1642036074996,24.0779,151.06,151.01,0.26]
[1642036075193,26.7259,151.06,151.01,0.26]
[1642036075595,26.7259,151.06,151.0,9.9297]
[1642036075996,6.0,151.05,151.0,9.9297]
[1642036076198,2.648,151.04,151.0,9.9297]
[1642036076696,2.898,151.04,151.0,9.9297]
[1642036076899,0.25,151.04,151.0,9.9297]
[1642036077297,0.25,151.04,151.01,0.26]
[1642036077697,2.898,151.05,151.01,0.26]
[1642036079500,6.0,151.04,151.0,9.9297]
[1642036079698,2.648,151.03,151.0,9.9297]
[1642036079898,2.908,151.03,151.0,9.9297]
[1642036080099,6.0,151.02,151.0,9.9297]
[1642036080299,80.57876838,151.01,151.0,9.9297]
[1642036080499,86.57876838,151.01,151.0,9.9297]
[1642036080700,80.82876838,151.01,151.0,9.9297]
[1642036084208,80.82876838,151.01,150.95,89.9917]
[1642036084408,80.82876838,151.01,150.96,0.26]
[1642036095532,80.82876838,151.01,150.96,0.26]
[1642036096232,34.82876838,151.01,150.96,0.26]
[1642036098035,6.31439994,151.01,150.96,0.26]
[1642036098634,0.25,151.01,150.96,0.26]
[1642036099241,2.899,151.02,150.96,0.26]
[1642036099435,0.25,151.02,150.96,0.26]
[1642036099634,28.90795216,151.03,150.96,0.26]
[1642036100937,2.649,151.05,150.96,0.26]
[1642036101140,6.0,151.04,150.96,0.26]
[1642036101941,6.0,151.04,150.93,6.26]
[1642036102144,30.65352955,151.06,150.97,1.623692]
[1642036102343,52.51432955,151.06,150.98,32.98358687]
[1642036102541,28.00452955,151.06,150.98,44.85858687]
[1642036102841,28.00452955,151.06,150.99,1.623692]
[1642036103044,28.00452955,151.06,151.0,0.26]
[1642036103243,28.25452955,151.06,151.0,0.26]
[1642036103944,28.00452955,151.06,151.0,0.26]
[1642036104945,28.00452955,151.06,151.01,9.5]
[1642036105145,28.25452955,151.06,151.01,9.5]
[1642036105345,28.25452955,151.06,151.02,0.26]
[1642036107266,28.00452955,151.06,151.02,0.26]
[1642036107467,2.648,151.1,151.02,0.26]
[1642036107669,81.1668,151.11,151.03,9.5]
[1642036107867,24.0986,151.1,151.03,9.5]
[1642036108069,24.0986,151.1,151.04,0.26]
[1642036108666,24.0986,151.1,151.03,0.51]
[1642036109268,24.0986,151.1,151.03,0.26]
[1642036109467,24.0986,151.1,151.03,9.76]
[1642036109667,24.0986,151.1,151.03,10.01]
[1642036110771,24.3486,151.1,151.03,10.01]
[1642036110971,24.3486,151.1,151.04,6.0]
[1642036111372,24.3486,151.1,151.05,0.26]
[1642036112971,24.0986,151.1,151.05,0.26]
[1642036113776,78.5208,151.11,151.05,9.76]
[1642036114176,78.5208,151.11,151.05,10.01]
[1642036114376,78.5208,151.11,151.06,6.0]
[1642036114576,78.5208,151.11,151.07,9.5]
[1642036114776,78.5208,151.11,151.07,10.01]
[1642036118083,78.5208,151.11,151.07,9.5]
[1642036118282,78.7708,151.11,151.06,6.0]
[1642036118487,2.646,151.1,151.05,6.0]
[1642036118687,26.0793,151.1,151.05,6.0]
[1642036119584,26.0793,151.1,151.06,9.76]
[1642036119983,25.8293,151.1,151.06,9.76]
[1642036120594,2.646,151.1,151.06,9.76]
[1642036120990,78.5208,151.11,151.06,9.76]
[1642036121287,78.5208,151.11,151.06,10.01]
[1642036122185,78.5208,151.11,151.06,9.76]
[1642036123288,78.5208,151.11,151.06,10.01]
[1642036130996,78.5208,151.11,151.06,19.9172]
[1642036132428,78.5208,151.11,151.06,19.6672]
[1642036132633,78.7708,151.11,151.04,6.0]
[1642036132830,2.646,151.1,151.0,9.5]
[1642036133132,27.3463,151.1,151.0,9.5]
[1642036133530,26.53538872,151.09,151.0,9.5]
[1642036133732,26.8452,151.08,151.0,9.5]
[1642036134130,27.0952,151.08,151.01,6.0]
[1642036134531,27.0952,151.08,151.02,0.26]
[1642036135234,27.0952,151.08,151.01,0.26]
[1642036135431,27.0952,151.08,151.0,6.26]
[1642036135631,27.0952,151.08,151.0,6.51]
[1642036137131,26.8452,151.08,151.0,6.51]
[1642036137332,26.8452,151.08,151.0,8.13224548]
[1642036138433,2.648,151.08,151.0,17.63224548]
[1642036138733,2.648,151.1,151.01,10.33619234]
[1642036138935,78.5208,151.11,151.02,9.76]
[1642036139133,78.5208,151.11,151.02,83.97224548]
[1642036139334,78.5208,151.11,151.03,1.62224548]
[1642036139532,78.5208,151.11,151.04,15.76]
[1642036139737,78.5208,151.11,151.04,16.01]
[1642036139934,78.5208,151.11,151.04,17.63224548]
[1642036140133,2.646,151.1,151.04,9.5]
[1642036140532,2.646,151.1,151.0,9.5]
[1642036140733,24.5879,151.09,151.02,6.0]
[1642036140933,2.648,151.08,151.01,6.0]
[1642036141134,2.898,151.08,151.01,6.0]
[1642036141334,2.898,151.08,151.0,0.25]
[1642036141535,47.73391013,151.07,151.0,0.25]
[1642036141733,47.98391013,151.07,151.0,0.25]
[1642036141932,47.98391013,151.07,150.98,21.43634548]
[1642036142133,2.648,151.06,150.98,21.43634548]
[1642036142534,2.898,151.06,150.99,0.26]
[1642036142834,0.25,151.06,150.99,0.26]
[1642036143636,47.98391013,151.07,150.99,0.26]
[1642036147041,2.648,151.06,150.98,1.62224548]
[1642036147244,2.898,151.06,150.94,31.34423782]
[1642036147441,2.898,151.06,150.97,6.0]
[1642036147442,28.8063,151.05,150.97,6.0]
[1642036147642,28.8063,151.05,150.95,6.0]
[1642036147643,2.648,151.04,150.95,6.0]
[1642036148041,0.26,151.03,150.94,6.0]
[1642036148242,30.52232724,151.01,150.94,6.0]
[1642036148442,30.52232724,151.01,150.94,6.25]
[1642036148641,30.77232724,151.01,150.94,0.25]
[1642036148840,30.77232724,151.01,150.95,6.0]
[1642036149040,30.77232724,151.01,150.93,6.0]
[1642036150144,30.77232724,151.01,150.93,6.25]
[1642036151043,30.77232724,151.01,150.9,9.5]
[1642036151244,26.6255,151.0,150.9,9.5]
[1642036151443,26.6255,151.0,150.91,6.0]
[1642036151642,26.8755,151.0,150.91,6.0]
[1642036152641,26.8755,151.0,150.91,6.25]
[1642036153949,26.8755,151.0,150.92,0.26]
[1642036154349,93.2155,151.0,150.92,0.26]
[1642036155348,93.2155,151.0,150.88,19.6801]
[1642036155647,66.34,150.98,150.85,13.25936441]
[1642036155847,2.65,150.97,150.85,9.5]
[1642036156048,8.91,150.97,150.85,9.5]
[1642036156247,9.16,150.97,150.85,9.5]
[1642036156448,23.0327,150.96,150.85,9.5]
[1642036156647,28.50768061,150.95,150.85,9.5]
[1642036157050,28.75768061,150.95,150.85,9.5]
[1642036157248,28.75768061,150.95,150.86,0.26]
[1642036158450,23.0327,150.96,150.87,9.5]
[1642036158848,23.0327,150.96,150.88,6.26]
[1642036159251,23.0327,150.96,150.88,6.51]
[1642036159451,23.0327,150.96,150.89,29.52847604]
[1642036159648,23.0327,150.96,150.89,29.77847604]
[1642036159850,23.0327,150.96,150.9,0.26]
[1642036162659,23.2827,150.96,150.89,0.26]
[1642036163458,23.0327,150.96,150.89,0.26]
[1642036163656,23.2827,150.96,150.89,0.26]
[1642036163857,23.2827,150.96,150.89,9.76]
[1642036164059,23.0327,150.96,150.89,10.01]
[1642036164258,23.2827,150.96,150.89,10.01]
[1642036165681,23.0327,150.96,150.89,10.01]
[1642036167284,97.6646,150.99,150.89,10.01]
[1642036167487,97.6646,150.99,150.9,6.0]
[1642036167687,23.6706,151.01,150.91,75.84]
[1642036167885,23.6706,151.01,150.91,77.72224548]
[1642036168085,23.6706,151.01,150.92,6.0]
[1642036168285,26.94401607,151.0,150.93,9.5]
[1642036168485,26.94401607,151.0,150.94,6.0]
[1642036168686,27.19401607,151.0,150.94,15.75]
[1642036168886,27.19401607,151.0,150.95,0.26]
[1642036170686,26.94401607,151.0,150.95,0.26]
[1642036174502,26.94401607,151.0,150.92,11.37900948]
[1642036174701,2.649,150.99,150.92,11.37900948]
[1642036174902,2.649,150.99,150.93,6.0]
[1642036175204,2.899,150.99,150.93,6.0]
[1642036175903,2.899,150.99,150.94,0.26]
[1642036176608,2.899,150.99,150.93,6.0]
[1642036178533,2.899,150.99,150.92,10.155]
[1642036178733,2.899,150.99,150.93,0.26]
[1642036179834,25.5596,150.99,150.93,0.26]
[1642036180537,25.3096,150.99,150.93,0.26]
[1642036180735,25.5596,150.99,150.93,0.26]
[1642036181237,26.94401607,151.0,150.93,0.26]
[1642036181441,26.94401607,151.0,150.93,6.26]
[1642036181736,26.94401607,151.0,150.93,6.51]
[1642036182438,26.94401607,151.0,150.93,8.38900948]
[1642036183538,26.94401607,151.0,150.93,1.87900948]
[1642036183737,27.19401607,151.0,150.93,1.87900948]
[1642036183938,27.19401607,151.0,150.92,12.03400948]
[1642036184138,27.19401607,151.0,150.92,12.28400948]
[1642036184339,27.19401607,151.0,150.93,9.5]
[1642036184537,26.94401607,151.0,150.93,15.75]
[1642036184938,26.94401607,151.0,150.94,0.26]
[1642036189347,24.1569,151.01,150.94,0.26]
[1642036189548,2.649,151.06,150.94,9.76]
[1642036189754,24.7203,151.05,150.94,76.35]
[1642036189948,24.7203,151.05,150.95,6.0]
[1642036190149,2.649,151.04,150.95,6.25]
[1642036190350,23.5456,151.03,150.96,0.26]
[1642036190948,23.5456,151.03,150.96,2.13900948]
[1642036191150,23.5456,151.03,150.97,6.0]
[1642036191550,23.5456,151.03,150.98,0.26]
[1642036194255,2.899,151.04,150.98,0.26]
[1642036194755,26.1375,151.04,150.98,0.26]
[1642036198761,23.4885,151.04,150.98,0.26]
[1642036204689,26.1365,151.04,150.98,0.26]
[1642036205290,26.1365,151.04,150.96,1.87900948]
[1642036205491,6.0,151.03,150.96,1.87900948]
[1642036205689,2.649,151.02,150.95,1.87900948]
[1642036205890,0.26,151.01,150.95,1.87900948]
[1642036206090,2.649,151.0,150.95,1.87900948]
[1642036206290,30.67850203,150.99,150.95,1.87900948]
[1642036206593,36.67850203,150.99,150.92,1.87900948]
[1642036206890,23.0241,150.98,150.93,0.26]
[1642036207791,23.0241,150.98,150.92,2.12900948]
[1642036207991,23.2741,150.98,150.92,1.87900948]
[1642036208593,6.0,150.97,150.92,1.87900948]
[1642036208793,66.34,150.96,150.92,1.87900948]
[1642036208995,6.0,150.95,150.91,1.87900948]
[1642036209196,8.9,150.95,150.91,1.87900948]
[1642036209394,2.65,150.95,150.91,1.87900948]
[1642036209994,2.65,150.95,150.87,3.75936441]
[1642036209995,2.9,150.95,150.9,1.87900948]
[1642036210195,0.25,150.95,150.9,1.87900948]
[1642036210795,0.25,150.95,150.89,1.87900948]
[1642036210997,23.0178,150.96,150.89,1.87900948]
[1642036210998,23.2678,150.96,150.89,1.87900948]
[1642036211594,23.2678,150.96,150.89,2.12900948]
[1642036211800,23.2678,150.96,150.9,0.26]
[1642036212000,23.2678,150.96,150.89,0.51]
[1642036212198,23.2678,150.96,150.89,0.26]
[1642036212600,23.0178,150.96,150.89,0.26]
[1642036213204,23.0178,150.96,150.89,6.26]
[1642036213405,2.65,150.98,150.89,6.51]
[1642036213605,30.67850203,150.99,150.89,6.51]
[1642036213907,30.92850203,150.99,150.89,10.01125496]
[1642036214103,24.2016,150.98,150.9,6.0]
[1642036214505,24.4516,150.98,150.91,0.26]
[1642036216308,24.4516,150.98,150.9,1.87900948]
[1642036216503,68.99,150.97,150.9,2.12900948]
[1642036216705,69.24,150.97,150.9,2.12900948]
[1642036217105,69.24,150.97,150.88,1.87900948]
[1642036217305,66.34,150.95,150.88,1.87900948]
[1642036217605,24.52542738,150.93,150.88,1.87900948]
[1642036218006,24.77542738,150.93,150.86,9.7723]
[1642036218205,24.77542738,150.93,150.84,1.87900948]
[1642036218408,91.11542738,150.93,150.85,6.0]
[1642036218604,2.65,150.92,150.85,6.0]
[1642036219006,25.6917,150.92,150.85,6.0]
[1642036219207,23.0417,150.92,150.84,6.0]
[1642036219407,23.0417,150.92,150.82,11.61370948]
[1642036220008,23.0417,150.92,150.82,9.7347]
[1642036220908,23.0417,150.92,150.82,9.9847]
[1642036221406,23.0417,150.92,150.83,6.0]
[1642036221807,23.0417,150.92,150.83,6.25]
[1642036222415,23.0417,150.92,150.84,0.26]
[1642036223615,2.65,150.91,150.81,9.5]
[1642036223815,2.65,150.91,150.81,1.87900948]
[1642036223816,9.5,150.9,150.81,1.87900948]